Cogmind - Beta 14 @@@ ROGUE MODE // 2024.08.26 @ 02:23:34 Player: peniwais Result: Destroyed by G-47 Trooper with Particle Gun Performance ------------- Evolutions (0) 0 Regions Visited (1) 200 Robots Destroyed (6) 30 Value Destroyed (157) 157 Prototype IDs (0) 0 Alien Tech Used (0) 0 Bonus (0) 0 TOTAL SCORE: 387 Bonus ------- None Cogmind --------- Core Integrity 0/250 Matter 268/300 Energy 90/100 System Corruption 2% Temperature Hot (262) Movement Core (50) Location -10/Materials Parts ------- > --- POWER (1) -------- (None) > --- PROPULSION (2) --- (None) > --- UTILITY (2) ------ (None) > --- WEAPON (2) ------- Small Laser > --- INVENTORY (5) ---- Light Ion Engine Aluminum Leg Heat Sink Peak State ------------ > --- POWER ------------ Light Ion Engine > --- PROPULSION ------- Wheel Wheel > --- UTILITY ---------- Improved Terrain Scanner > --- WEAPON ----------- EM Pulse Gun Medium Laser > --- INVENTORY -------- Ion Engine Aluminum Leg Small Laser [Rating: 8] Favorites ----------- Power Light Ion Engine Engine Light Ion Engine Propulsion Wheel Leg Aluminum Leg Wheel Wheel Utility Improved Terrain Scanner Device Improved Terrain Scanner Weapon EM Pulse Gun Energy Gun EM Pulse Gun Build | -11 -10 ------- Run | Yrd Mat Slots Evolved . | . . Power . | . . Propulsion . | . . Utility . | . . Weapon . | . . Parts Attached 12 | 10 2 Power 2 | 2 . Engine 2 | 2 . Core . | . . Reactor . | . . Propulsion 4 | 4 . Treads . | . . Leg 2 | 2 . Wheel 2 | 2 . Hover . | . . Flight . | . . Utility 1 | 1 . Device 1 | 1 . Storage . | . . Processor . | . . Hackware . | . . Protection . | . . Artifact . | . . Weapon 5 | 3 2 Energy Gun 5 | 3 2 Energy Cannon . | . . Ballistic Gun . | . . Ballistic Cannon . | . . Launcher . | . . Special Weapon . | . . Impact Weapon . | . . Slashing Weapon . | . . Piercing Weapon . | . . Special Melee Weapon . | . . Unidentified Prototypes . | . . Corrupted Parts 2 | . 2 System Corruption 2 | . 2 Parts Lost 7 | . 7 Power 1 | . 1 Propulsion 2 | . 2 Utility 1 | . 1 Weapon 3 | . 3 Highest Loss Streak 7 | . 7 To Critical Strikes . | . . Average Slot Usage (%) 65 | . 65 Engine 10 | . 10 Wheel 22 | . 22 Device 10 | . 10 Energy Gun 20 | . 20 Peak Build Rating 8 | 8 8 Average Rating 3 | 2 6 On Entrance 4 | . 8 Naked Turns 5 | . 5 Heaviest Build 10 | 10 10 Greatest Support 20 | 20 20 Greatest Overweight (x) 2 | 2 . Average Overweight (x) . | . . Largest Inventory Capacity 5 | 5 5 Average Capacity 5 | 5 5 Most Carried 5 | 5 4 Average Carried 1 | 1 2 Final Capacity 5 | 5 5 Final Carried 3 | 3 3 Class Distribution -------------------- 100% | Mutant Dominant Class ---------------- Mutant | -10/Materials Resources | -11 -10 ----------- Run | Yrd Mat Matter Collected 346 | 296 50 Remotely . | . . Salvage Created 245 | 66 179 Parts 14 | 5 9 Haulers Intercepted . | . . Recyclers Shooed . | . . Parts Field Recycled . | . . Retrieved Matter . | . . Parts Self-Destructed . | . . Prevented . | . . Kills | -11 -10 ------- Run | Yrd Mat Combat Hostiles Destroyed 4 | 1 3 Guns 4 | 1 3 Classes Destroyed 3 | 2 1 Worker 1 | . 1 Tunneler 1 | 1 . Grunt 4 | 1 3 Best Kill Streak 3 | 1 3 Combat Bots Only 2 | 1 2 Max Kills in Single Turn 1 | 1 1 Gunslinging . | . . Exploded . | . . Melee . | . . Uniques/NPCs Destroyed . | . . Combat | -11 -10 -------- Run | Yrd Mat Hostile Shots Fired 62 | 6 56 Missed 10 | 1 9 Damage Taken 717 | 54 663 Core 255 | 10 245 Absorbed by Shields . | . . Core Remaining (%) 96 | 96 . Volleys Fired 27 | 5 22 Largest 2 | 2 2 Hottest 90 | 90 90 Shots Fired 39 | 10 29 Gun 39 | 10 29 Cannon . | . . Launcher . | . . Special . | . . Kinetic . | . . Thermal 27 | 1 26 Explosive . | . . Electromagnetic 12 | 9 3 Robot Hit Streak 6 | 4 6 Robot Miss Streak 3 | 1 3 Penetration Max . | . . Secondary Targets 1 | . 1 Max Gunslinging Chain 1 | . 1 Shots Hit Robots 24 | 7 17 Core Hits 9 | 2 7 Critical Kills . | . . Critical Parts Destroyed . | . . Critical Strikes . | . . Melee Attacks . | . . Impact . | . . Slashing . | . . Piercing . | . . Sneak Attacks . | . . Combat Hostiles . | . . Follow-up Attacks . | . . Damage Inflicted 354 | 127 227 Guns 308 | 81 227 Cannons . | . . Explosions 46 | 46 . Melee . | . . Ramming . | . . Kinetic . | . . Thermal 246 | 46 200 Explosive . | . . Electromagnetic 108 | 81 27 Impact . | . . Slashing . | . . Piercing . | . . Highest Corruption 2 | . 2 Average Corruption 1 | . 1 Corruption Purged . | . . Corruption Blocked . | . . Overload Shots . | . . Overflow Damage 16 | 16 . Projectiles . | . . Explosions 16 | 16 . Melee . | . . Knockbacks . | . . Impact . | . . Kinetic . | . . Secondary . | . . Self-Inflicted Damage . | . . Shots . | . . Rammed . | . . Targets Rammed . | . . Kicked . | . . Crushed . | . . Highest Temperature 387 | 102 387 Average Temperature 173 | 48 216 Received Heat Transfer 447 | 30 417 Effects 1 | . 1 Matter Decay 1 | . 1 Siege Activations . | . . Robots Corrupted . | . . Combat Hostiles . | . . Parts Fried 1 | 1 . Impact Corruptions . | . . Robots Melted . | . . Combat Hostiles . | . . Parts Melted 1 | . 1 Heat Transferred 559 | 50 509 Parts Sabotaged . | . . Parts Stolen . | . . Parts Stripped . | . . Power Chain Reactions 1 | 1 . Alert | -11 -10 ------- Run | Yrd Mat Peak Influence 66 | 25 66 Initial 16 | . 16 Average 9 | 3 28 Maximum Alert Level . | . . Low Security (%) 100 | 100 100 Level 1 . | . . Level 2 . | . . Level 3 . | . . Level 4 . | . . Level 5 . | . . High Security . | . . Max Security . | . . Squads Dispatched . | . . Investigation . | . . Extermination . | . . Reinforcement . | . . Assault . | . . Garrison . | . . Intercept . | . . Searches Triggered . | . . Construction Impeded . | . . Haulers Reinforced . | . . Active Scanning Responses . | . . Cargo Convoy Interrupts . | . . Stealth | -11 -10 --------- Run | Yrd Mat Distress Signals . | . . Communications Jammed . | . . Distress Signals . | . . Times Spotted 9 | 1 8 Peak Tracking Total 4 | 1 4 Tactical Retreats 1 | . 1 Traps | -11 -10 ------- Run | Yrd Mat Traps Triggered . | . . Indirectly . | . . Trap Hack Attempts . | . . Triggered . | . . Disarmed . | . . Reprogrammed . | . . Reused . | . . Traps Extracted . | . . Installed . | . . Triggered . | . . Machines | -11 -10 ---------- Run | Yrd Mat Machines Disabled . | . . Max in Single Turn . | . . Machines Repaired . | . . Machines Dismantled . | . . Machines Sabotaged . | . . Overloaded Fab Kills . | . . Hacking | -11 -10 --------- Run | Yrd Mat Machines Accessed . | . . Terminals . | . . Fabricators . | . . Repair Stations . | . . Recycling Units . | . . Scanalyzers . | . . Garrison Access . | . . Total Hacks . | . . Successful . | . . Failed . | . . Catastrophic . | . . Database Lockouts . | . . Manual . | . . Terminals . | . . Fabricators . | . . Repair Stations . | . . Recycling Units . | . . Scanalyzers . | . . Garrison Access . | . . Terminal Hacks . | . . Fabricator Hacks . | . . Repair Station Hacks . | . . Recycling Unit Hacks . | . . Scanalyzer . | . . Garrison Access Hacks . | . . Unauthorized Hacks . | . . Terminals . | . . Fabricators . | . . Repair Stations . | . . Recycling Units . | . . Scanalyzers . | . . Garrison Access . | . . Data Cores Recovered . | . . Used . | . . Hacking Detections . | . . Full Trace Events . | . . Feedback Events . | . . Feedback Blocked . | . . Robot Schematics Acquired . | . . Robots Built . | . . Authchips . | . . Time . | . . Total Robot Build Rating . | . . Part Schematics Acquired . | . . Parts Built . | . . Authchips . | . . Time . | . . Total Part Build Rating . | . . Parts Repaired . | . . Time . | . . Parts Recycled . | . . Recycled Matter . | . . Retrieved Matter . | . . Retrieved Components . | . . Parts Scanalyzed . | . . Part Schematics Acquired . | . . Parts Damaged . | . . Bothacking | -11 -10 ------------ Run | Yrd Mat Used RIF Installer . | . . Robots Hacked . | . . Non-combat . | . . Combat . | . . Robot Hacks Applied . | . . Relay Couplers Released . | . . Fabnet Peak Effective % . | . . Robots Rewired . | . . Allies Hacked . | . . Hacks Repelled . | . . Allies | -11 -10 -------- Run | Yrd Mat Total Allies . | . . Largest Group . | . . Highest-Rated Group . | . . Highest-Rated Ally . | . . Total Orders . | . . Ally Attacks . | . . Total Damage . | . . Kills . | . . Allies Corrupted . | . . Allies Melted . | . . Intel | -11 -10 ------- Run | Yrd Mat Robot Analysis Total . | . . Derelict Logs Recovered . | . . Drone Launches . | . . Drone Recoveries . | . . Exploration | -11 -10 ------------- Run | Yrd Mat Turns Passed 502 | 374 128 Spaces Moved 260 | 168 92 Core 65 | 59 6 Treads . | . . Legs 77 | 77 . Wheels 118 | 32 86 Hover . | . . Flight . | . . Fastest Speed 50 | 50 50 Average Speed 89 | 95 78 Slowest Speed 150 | 150 80 Overloaded Moves . | . . Propulsion Burnouts . | . . Robots Hopped . | . . Cave-ins Triggered . | . . Exploration Rate (%) 13 | 10 16 Regions Visited 1 Branch Regions . Pre-discovered Areas . | . . Known Exits Taken . | . . Unknown Exits Taken 1 | 1 . Scrap Searched . | . . Spaces Dug . | . . Terrain Destroyed 6 | 6 . Melee . | . . Projectile . | . . AOE 6 | 6 . Terrain Rammed . | . . Walls Destroyed . | . . Machines Disabled . | . . Actions | -11 -10 --------- Run | Yrd Mat Total 493 | 372 121 Wait 175 | 172 3 Move 259 | 167 92 Hop . | . . Pick Up 15 | 13 2 Fast Attach . | . . Attach 9 | 7 2 Detach 1 | 1 . Swap 3 | 3 . Drop 4 | 4 . Fire 27 | 5 22 Melee . | . . Ram . | . . Kick . | . . Crush . | . . Escape Stasis . | . . Rewire . | . . Trap . | . . Miscellaneous . | . . Route ------- -11/Scrapyard -10/Materials History --------- Turn | Location | Event 2 | -11/Scrapyard | Met Revision 17 305 | -11/Scrapyard | Discovered new exit (range 8) 375 | -11/Scrapyard | Entered Materials 391 | -10/Materials | Build established: Mutant 469 | -10/Materials | Core integrity fell below 50% 494 | -10/Materials | Core integrity fell below 20% 503 | -10/Materials | Destroyed by G-47 Trooper with Particle Gun Last Messages --------------- K-01 Serf collects debris. Acquired 50 matter. U-05 Engineer destroyed. Acquired Corrupted Sml. Laser. G-47 Trooper heat spikes uncontrollably. Integrated Corrupted Sml. Laser (+1). Complication: FCS attempts to trigger Sml. Laser. Complication: Sml. Laser misfires. K-01 Serf destroyed. G-47 Trooper overheating. U-05 Engineer builds a Door. Aluminum Leg melted. G-47 Trooper destroyed. R-06 Scavenger collects Aluminum Leg. G-34 Mercenary destroyed. R-06 Scavenger collects Structural Scanner. R-06 Scavenger collects Wheel. R-06 Scavenger collects Lgt. Ion Engine. Critical hit (Burn: +37). [Achievement: First Step to Greatness] Map ----- +----------------------------------------------------+ | ????????????????????????????????????? | | #????????#??????????????????????????? | | ????????????????????????????????????? | | ??????#??????????????#??????????????? | | ?###??????????????????????????#?????? | | ?# ###???????#?????????????????????? | | ?? #?????????????????????????????? | | #### ################?#?????????????? | | + #???????????#???? | | # """ """ #???#???????#???? | | # """"""""" #??#????????????? | | ####### """"" " #??#####????????? | | ????### #??# #????????? | | ???##?# #??# #?#??????? | | #########+############## #????#???? | | #????????? | | #????????? | | #????????? | | ##+#####################%g #????????? | | ???????????????? ??????# !%#??#?????? | | ???? ?#????????#? ????# *#??????? ? | | ???????????????????????# #??" # | | ??????????#????????????# #?"" # | | ????????????????? ?? ?# #""" # | | ?????????????????????? + + # | | ???????????????????????# @%#""" # | | ?????????? ?????? ?????# #""" # | | ??? ???????????????????# #""" # | | ??????????????????? ? ?# #?? ??? | | ????????????"??????????# ru#????????? | | ???????????????????????#% #????????? | | ???????????????????????#!= #????????? | | ???????????????????????#g ##???????? | | ??????????????????????? #????????? | | ??????????????????????? #????????? | | ???????????????????????g #????????? | | ??????????????????????? #????????? | | ???????????????????????# #????????? | | ???????????????????????? ?????????? | | ???????????????????????? ?????????? | | ???????????????????????? ?????????? | | ????????????????????????????????????? | | ????????????????????????????????????? | | ????????????????????????????????????? | | ????????????????????????????????????? | | ????????????????????????????????????? | | ????????????????????????????????????? | | ????????????????????????????????????? | | ????????????????????????????????????? | | ????????????????????????????????????? | +----------------------------------------------------+ Best States ------------- Heat Dissipation 25 Energy Generation 10 Energy Capacity 250 Matter Stores 300 Matter Capacity 300 Sight Range 16 Terrain Scan Range 16 Terrain Scan Density 10 Evasion (%) 55 Item Schematics ----------------- None Robot Schematics ------------------ None Fabricated ------------ Nothing Alien Tech Used ----------------- None Achievements -------------- First Step to Greatness Challenges ------------ None Game ------ Seed GravmagSniperObliterator Manual? 0 Play Time 00:17:01 Cumulative 0.2 hours Start 2024.08.26 @ 02:05:42 End 2024.08.26 @ 02:23:34 Sessions 1 Manual Loads 0 Difficulty Rogue Special Mode None Game No. 2 Rogue 2 Adventurer 0 Explorer 0 Win Type - Total 0 Types 0/0/0/0/0/0/0/0/0 Lore% 0 Gallery% 0 Achievement% 0 Wizard Run 0 Options --------- Layout 1 ASCII 0 Keyboard 0 Movement Mouse Keybinds 0 Fullscreen 2 Font 16/SmallcapsGlow Map View 55x38 Zoom Use 0% Tactical HUD 0 Map Filters NONE Filters NONE Steam 1 RUN: fe5ded7d-baa1-456e-be4c-6cc17e307093